bitfinex/quotes_BTCUSD_20240811
["timestamp","ask_amount","ask_price","bid_price","bid_amount"]
[1723347033811,0.001831,61452.0,61451.0,1.59970824]
[1723347034460,0.001831,61452.0,61451.0,1.46457435]
[1723347034659,0.001831,61452.0,61451.0,1.47457435]
[1723347034859,0.001831,61452.0,61451.0,1.52102167]
[1723347035014,0.001831,61452.0,61451.0,1.46457435]
[1723347035481,0.001831,61452.0,61451.0,1.47457435]
[1723347035862,0.000831,61452.0,61451.0,1.45157435]
[1723347036001,0.001831,61452.0,61451.0,1.79403635]
[1723347036576,0.000831,61452.0,61451.0,1.46157435]
[1723347036927,0.001831,61452.0,61451.0,1.53102167]
[1723347037127,0.001831,61452.0,61451.0,1.47457435]
[1723347037307,0.000831,61452.0,61451.0,1.46157435]
[1723347037505,0.000831,61452.0,61451.0,1.83003635]
[1723347038261,0.000831,61452.0,61451.0,1.80003635]
[1723347038698,0.001831,61452.0,61451.0,1.81303635]
[1723347038823,0.001831,61452.0,61451.0,1.79003635]
[1723347039429,0.000831,61452.0,61451.0,1.45157435]
[1723347039638,0.001831,61452.0,61451.0,1.46457435]
[1723347040197,0.000831,61452.0,61451.0,1.48157435]
[1723347040423,0.000831,61452.0,61451.0,1.80703635]
[1723347040614,0.001831,61452.0,61451.0,1.46457435]
[1723347041072,0.001831,61452.0,61451.0,1.47457435]
[1723347042043,0.001831,61452.0,61451.0,1.46157435]
[1723347042044,0.000831,61452.0,61451.0,1.46157435]
[1723347042247,0.001831,61452.0,61451.0,1.49457435]
[1723347042454,0.001831,61452.0,61451.0,1.47457435]
[1723347042747,0.000831,61452.0,61451.0,1.46157435]
[1723347043147,0.001831,61452.0,61451.0,1.49457435]
[1723347043275,0.001831,61452.0,61451.0,1.84303635]
[1723347043491,0.001831,61452.0,61451.0,1.83003635]
[1723347043738,0.000831,61452.0,61451.0,1.83003635]
[1723347044052,0.001831,61452.0,61451.0,1.84303635]
[1723347045006,0.000831,61452.0,61451.0,1.83003635]
[1723347045413,0.001831,61452.0,61451.0,1.84303635]
[1723347046102,0.000831,61452.0,61451.0,1.80703635]
[1723347046308,0.001831,61452.0,61451.0,1.82003635]
[1723347046720,0.001831,61452.0,61451.0,1.80703635]
[1723347046925,0.000831,61452.0,61451.0,1.46157435]
[1723347047300,0.001831,61452.0,61451.0,1.13911235]
[1723347048540,0.000831,61452.0,61451.0,1.12611235]
[1723347048888,0.000831,61452.0,61451.0,1.13911235]
[1723347048889,0.001831,61452.0,61451.0,1.13911235]
[1723347049270,0.000831,61452.0,61451.0,1.12611235]
[1723347049653,0.001831,61452.0,61451.0,1.13911235]
[1723347050471,0.000831,61452.0,61451.0,0.98191235]
[1723347051813,0.001831,61452.0,61451.0,0.99391235]
[1723347052270,0.001831,61452.0,61451.0,1.31937435]
[1723347052693,0.001831,61452.0,61451.0,1.32028845]
[1723347053782,0.001831,61452.0,61451.0,1.40118845]
[1723347054219,0.001831,61452.0,61451.0,1.07572645]
[1723347056524,0.001831,61452.0,61451.0,0.99482645]
[1723347056895,0.062131,61452.0,61451.0,0.01735653]
[1723347057021,0.062131,61452.0,61451.0,0.18008753]
[1723347057222,0.07037391,61452.0,61451.0,0.18008753]
[1723347057647,0.062131,61452.0,61451.0,0.18008753]
[1723347057962,0.062131,61452.0,61451.0,0.34390245]
[1723347057963,0.01007391,61452.0,61451.0,0.34390245]
[1723347058167,0.01007391,61452.0,61451.0,0.18008753]
[1723347058371,0.00907391,61452.0,61451.0,0.16808753]
[1723347058714,0.01007391,61452.0,61451.0,0.18008753]
[1723347058912,0.01007391,61452.0,61451.0,0.01735653]
[1723347059338,0.96782678,61452.0,61451.0,0.0009141]
[1723347059544,1.29328378,61452.0,61451.0,0.0009141]
[1723347059760,1.36451352,61452.0,61451.0,0.0009141]
[1723347059964,1.29328378,61452.0,61451.0,0.0059141]
[1723347060271,1.29328378,61452.0,61451.0,0.0009141]
[1723347061310,1.29328378,61452.0,61451.0,0.0049141]
[1723347061466,1.5800987,61452.0,61451.0,0.0049141]
[1723347061680,2.0697054,61452.0,61451.0,0.0049141]
[1723347061892,2.08062988,61452.0,61451.0,0.0049141]
[1723347062216,1.90542883,61452.0,61451.0,0.0049141]
[1723347062421,1.39315691,61452.0,61451.0,0.0049141]
[1723347062638,1.4043026,61452.0,61451.0,0.0049141]
[1723347062838,1.39315691,61452.0,61451.0,0.0049141]
[1723347063030,1.39325365,61452.0,61451.0,0.0049141]
[1723347063234,1.39315691,61452.0,61451.0,0.0049141]
[1723347064380,1.39315691,61452.0,61451.0,0.00935653]
[1723347064584,1.39315691,61452.0,61451.0,0.0049141]
[1723347064858,1.39315691,61452.0,61451.0,0.00935653]
[1723347065074,1.06769991,61452.0,61451.0,0.00935653]
[1723347067551,0.74224291,61452.0,61451.0,0.00935653]
[1723347067799,0.92289991,61452.0,61451.0,0.00935653]
[1723347069269,0.92289991,61452.0,61451.0,0.0049141]
[1723347069515,0.92289991,61452.0,61451.0,0.00935653]
[1723347069741,1.06769991,61452.0,61451.0,0.0049141]
[1723347070175,1.39315691,61452.0,61451.0,0.0049141]
[1723347070612,1.38473,61452.0,61451.0,0.0049141]
[1723347071776,1.87955949,61452.0,61451.0,0.0049141]
[1723347071983,1.87400192,61452.0,61451.0,0.0049141]
[1723347072375,1.87955949,61452.0,61451.0,0.0049141]
[1723347072581,1.38473,61452.0,61451.0,0.0049141]
[1723347072779,1.059273,61452.0,61451.0,0.00935653]
[1723347073060,0.894473,61452.0,61451.0,0.00935653]
[1723347073262,0.814473,61452.0,61451.0,0.00935653]
[1723347073747,0.489016,61452.0,61451.0,0.00935653]
[1723347073888,0.163559,61452.0,61451.0,0.00935653]
[1723347074286,0.489016,61452.0,61451.0,0.00935653]
[1723347074715,0.814473,61452.0,61451.0,0.00935653]
[1723347075448,1.28473,61452.0,61451.0,0.0049141]
[1723347080347,0.959273,61452.0,61451.0,0.0049141]
[1723347080582,0.959273,61452.0,61451.0,0.00935653]
[1723347080583,0.814473,61452.0,61451.0,0.00935653]
[1723347082107,0.489016,61452.0,61451.0,0.00935653]
[1723347084365,0.163559,61452.0,61451.0,0.00935653]
[1723347084564,0.489016,61452.0,61451.0,0.00935653]
[1723347087144,0.814473,61452.0,61451.0,0.00935653]
[1723347088841,0.896273,61452.0,61451.0,0.0049141]
[1723347089044,1.22173,61452.0,61451.0,0.0049141]
[1723347089200,1.28173,61452.0,61451.0,0.0049141]
[1723347090597,1.28173,61452.0,61451.0,0.00935653]
[1723347090807,1.28173,61452.0,61451.0,0.0049141]
[1723347091775,1.28173,61452.0,61451.0,0.00935653]
[1723347092471,1.28173,61452.0,61451.0,0.0049141]
[1723347092674,1.28173,61452.0,61451.0,0.00935653]
[1723347092882,0.956273,61452.0,61451.0,0.00935653]
[1723347093981,0.000831,61452.0,61451.0,0.00935653]
[1723347094262,0.489016,61452.0,61451.0,0.00935653]
[1723347095257,1.33043528,61452.0,61451.0,0.0049141]
[1723347095410,1.35478793,61452.0,61451.0,0.0049141]
[1723347095615,1.35481447,61452.0,61451.0,0.0049141]
[1723347095870,1.33045111,61452.0,61451.0,0.0049141]
[1723347096051,1.28173,61452.0,61451.0,0.0049141]
[1723347096248,1.33045111,61452.0,61451.0,0.0049141]
[1723347098093,1.35483221,61452.0,61451.0,0.0049141]
[1723347098297,1.56601453,61452.0,61451.0,0.0049141]
[1723347098594,1.56854492,61452.0,61451.0,0.0049141]
[1723347098795,1.70052073,61452.0,61451.0,0.0049141]
[1723347099096,1.67752073,61452.0,61451.0,0.0049141]
[1723347099271,1.55568372,61452.0,61451.0,0.0049141]
[1723347099436,1.64305231,61452.0,61451.0,0.0049141]
[1723347099644,1.64305178,61452.0,61451.0,0.0049141]
[1723347099845,1.47923686,61452.0,61451.0,0.0049141]
[1723347100051,1.38173,61452.0,61451.0,0.0049141]
[1723347100467,1.45487709,61452.0,61451.0,0.0049141]
[1723347100876,1.38173,61452.0,61451.0,0.0049141]
[1723347101100,1.38173,61452.0,61451.0,0.00935653]
[1723347101300,1.55240648,61452.0,61451.0,0.00935653]
[1723347101620,1.55240648,61452.0,61451.0,0.0049141]
[1723347102080,1.47923686,61452.0,61451.0,0.0049141]
[1723347103060,1.38173,61452.0,61451.0,0.0049141]
[1723347103739,1.38173,61452.0,61451.0,0.00935653]
[1723347103960,1.38173,61452.0,61451.0,0.0049141]
[1723347105032,0.914473,61452.0,61451.0,0.00935653]
[1723347105401,0.489016,61452.0,61451.0,0.00935653]
[1723347105571,0.814473,61452.0,61451.0,0.00935653]
[1723347105979,0.000831,61452.0,61451.0,0.00935653]
[1723347106183,0.000831,61452.0,61451.0,0.64174953]
[1723347106367,0.000831,61452.0,61451.0,0.80556445]
[1723347106793,0.000831,61452.0,61451.0,1.2661829]
[1723347107002,0.000831,61452.0,61451.0,0.9407209]
[1723347107208,0.000831,61452.0,61451.0,0.80556445]
[1723347107852,0.000831,61452.0,61451.0,0.15355653]
[1723347108054,0.000831,61452.0,61451.0,0.31628753]
[1723347108269,0.000831,61452.0,61451.0,0.15355653]
[1723347108460,0.489016,61452.0,61451.0,0.00935653]
[1723347108667,0.814473,61452.0,61451.0,0.00935653]
[1723347108817,0.489016,61452.0,61451.0,0.00935653]
[1723347109742,0.814473,61452.0,61451.0,0.00935653]
[1723347110140,1.44147613,61452.0,61451.0,0.0049141]
[1723347110323,1.60697613,61452.0,61451.0,0.0049141]
[1723347110711,1.54774492,61452.0,61451.0,0.0049141]
[1723347111870,1.058473,61452.0,61451.0,0.0049141]
[1723347112275,1.38393,61452.0,61451.0,0.0049141]
[1723347113393,1.058473,61452.0,61451.0,0.00935653]
[1723347113617,0.914473,61452.0,61451.0,0.00935653]
[1723347113782,0.86327923,61452.0,61451.0,0.00935653]
[1723347113983,0.814473,61452.0,61451.0,0.00935653]
[1723347118065,0.163559,61452.0,61451.0,0.00935653]
[1723347118216,0.000831,61452.0,61451.0,0.00935653]
[1723347118463,0.000831,61452.0,61451.0,0.17208753]
[1723347119220,0.000831,61452.0,61451.0,0.49754953]
[1723347119360,0.000831,61452.0,61451.0,0.17208753]
[1723347120362,0.000831,61452.0,61451.0,0.00935653]
[1723347122220,0.000831,61452.0,61451.0,0.17208753]
[1723347122457,0.000831,61452.0,61451.0,0.0049141]
[1723347122777,0.000831,61452.0,61451.0,0.00935653]
[1723347123899,0.163559,61452.0,61451.0,0.00935653]
[1723347124293,0.000831,61452.0,61451.0,0.00935653]
[1723347124962,0.489016,61452.0,61451.0,0.00935653]
[1723347125740,0.163559,61452.0,61451.0,0.00935653]
[1723347125945,0.489016,61452.0,61451.0,0.00935653]
[1723347126839,0.163559,61452.0,61451.0,0.00935653]
[1723347127050,0.000831,61452.0,61451.0,0.00935653]
[1723347128510,0.000831,61452.0,61451.0,0.00535653]
[1723347128906,0.000831,61452.0,61451.0,0.00935653]
[1723347129202,0.000831,61452.0,61451.0,0.00535653]
[1723347129358,0.163559,61452.0,61451.0,0.00535653]
[1723347129970,0.489016,61452.0,61451.0,0.00535653]
[1723347130247,0.163559,61452.0,61451.0,0.00535653]
[1723347130561,0.000831,61452.0,61451.0,0.01035653]
[1723347130776,0.000831,61452.0,61451.0,0.00535653]
[1723347131182,0.000831,61452.0,61451.0,0.00935653]
[1723347131482,0.163559,61452.0,61451.0,0.00935653]
[1723347131835,0.163559,61452.0,61451.0,0.00535653]
[1723347132036,0.163559,61452.0,61451.0,0.00835653]
[1723347132239,0.163559,61452.0,61451.0,0.01335653]
[1723347132448,0.000831,61452.0,61451.0,0.01335653]
[1723347132622,0.163559,61452.0,61451.0,0.01035653]
[1723347132828,0.489016,61452.0,61451.0,0.01135653]
[1723347133041,0.632316,61452.0,61451.0,0.01135653]
[1723347133453,0.632316,61452.0,61451.0,0.00635653]
[1723347133686,0.957773,61452.0,61451.0,0.00635653]
[1723347133882,0.957773,61452.0,61451.0,0.01135653]
[1723347134105,1.00655713,61452.0,61451.0,0.01135653]
[1723347134300,1.28323,61452.0,61451.0,0.0059141]
[1723347134502,1.28323,61452.0,61451.0,0.0089141]
[1723347134679,1.28323,61452.0,61451.0,0.00535653]
[1723347134879,1.35640989,61452.0,61451.0,0.0009141]
[1723347135101,1.35641322,61452.0,61451.0,0.0059141]
[1723347135300,1.35641322,61452.0,61451.0,0.0009141]
[1723347137155,1.28323,61452.0,61451.0,0.0039141]
[1723347137983,1.38080798,61452.0,61451.0,0.0039141]
[1723347138339,1.28323,61452.0,61451.0,0.0039141]
[1723347138540,1.44704492,61452.0,61451.0,0.0039141]
[1723347139286,1.28323,61452.0,61451.0,0.0039141]
[1723347139515,1.40520355,61452.0,61451.0,0.00835653]
[1723347139705,1.28323,61452.0,61451.0,0.00835653]
[1723347140213,1.40520194,61452.0,61451.0,0.00835653]
[1723347140417,1.38080355,61452.0,61451.0,0.00835653]
[1723347140712,1.21913,61452.0,61451.0,0.00835653]
[1723347141259,1.31670355,61452.0,61451.0,0.00835653]
[1723347141467,1.21913,61452.0,61451.0,0.00835653]
[1723347142096,1.31670355,61452.0,61451.0,0.00835653]
[1723347142498,1.21913,61452.0,61451.0,0.00835653]
[1723347142721,1.31670355,61452.0,61451.0,0.00835653]
[1723347143550,1.31670358,61452.0,61451.0,0.00835653]
[1723347144162,1.21913,61452.0,61451.0,0.00835653]
[1723347144519,1.31670358,61452.0,61451.0,0.00835653]
[1723347144736,1.21913,61452.0,61451.0,0.00835653]
[1723347144943,1.31670358,61452.0,61451.0,0.00835653]
[1723347145144,1.21913,61452.0,61451.0,0.00835653]
[1723347145678,1.50491189,61452.0,61451.0,0.00835653]
[1723347145865,1.50491189,61452.0,61451.0,0.0039141]
[1723347146069,1.38294492,61452.0,61451.0,0.0039141]
[1723347146244,1.77970192,61452.0,61451.0,0.0039141]
[1723347146453,1.80270192,61452.0,61451.0,0.0039141]
[1723347146656,1.92839901,61452.0,61451.0,0.0039141]
[1723347146817,1.91284144,61452.0,61451.0,0.0039141]
[1723347147022,1.92839901,61452.0,61451.0,0.0039141]
[1723347147219,2.46839901,61452.0,61451.0,0.0039141]
[1723347147424,2.95851143,61452.0,61451.0,0.0039141]
[1723347147870,2.79385601,61452.0,61451.0,0.0039141]
[1723347148710,2.46840021,61452.0,61451.0,0.0039141]
[1723347148913,2.63297649,61452.0,61451.0,0.0039141]
[1723347149560,2.46840021,61452.0,61451.0,0.0039141]
[1723347149917,2.63254991,61452.0,61451.0,0.0039141]
[1723347150611,2.63255015,61452.0,61451.0,0.0039141]
[1723347150792,2.95800715,61452.0,61451.0,0.0039141]
[1723347151153,2.63255015,61452.0,61451.0,0.0039141]
[1723347151358,2.95800715,61452.0,61451.0,0.0039141]
[1723347152161,2.45284288,61452.0,61451.0,0.0039141]
[1723347152374,2.45284288,61452.0,61451.0,0.0009141]
[1723347152580,2.45284271,61452.0,61451.0,0.0009141]
[1723347153167,2.48240028,61452.0,61451.0,0.0019141]
[1723347153363,2.46684271,61452.0,61451.0,0.0019141]
[1723347153787,2.60696788,61452.0,61451.0,0.0019141]
[1723347153992,2.61296788,61452.0,61451.0,0.0019141]
[1723347154152,2.64654998,61452.0,61451.0,0.0019141]
[1723347154357,2.65454998,61452.0,61451.0,0.0029141]
[1723347154570,2.64054998,61452.0,61451.0,0.0019141]
[1723347155020,2.98000698,61452.0,61451.0,0.0029141]
[1723347155709,2.98000698,61452.0,61432.0,0.49107874]
[1723347155710,0.813892,61433.0,61432.0,0.49107874]
[1723347156152,0.488368,61429.0,61425.0,0.066]
[1723347156748,0.488392,61426.0,61425.0,0.066]
[1723347156974,0.488392,61426.0,61425.0,0.1412]
[1723347157401,0.488392,61426.0,61425.0,0.00444243]
[1723347157402,1.139582,61426.0,61425.0,0.00444243]
[1723347157722,0.813987,61426.0,61425.0,0.00444243]
[1723347158257,0.814987,61426.0,61425.0,0.01644243]
[1723347158458,0.813987,61426.0,61425.0,0.00444243]
[1723347159885,0.813987,61426.0,61425.0,0.00744243]
[1723347160146,1.139582,61426.0,61425.0,0.00744243]
[1723347160928,1.139582,61426.0,61425.0,0.003]
[1723347161993,1.219482,61426.0,61425.0,0.003]
[1723347162530,1.608977,61426.0,61425.0,0.003]
[1723347162749,1.88965323,61426.0,61425.0,0.003]
[1723347162948,1.91265323,61426.0,61425.0,0.003]
[1723347163185,2.86394993,61426.0,61425.0,0.003]
[1723347163603,2.96134621,61426.0,61425.0,0.003]
[1723347163800,1.81638457,61424.0,61423.0,0.0009141]
[1723347163968,3.06129332,61424.0,61423.0,0.0009141]
[1723347164176,3.06129332,61424.0,61409.0,0.00444243]
[1723347164177,1.139876,61410.0,61409.0,0.00444243]
[1723347164379,1.283676,61410.0,61406.0,0.00444243]
[1723347164582,1.283676,61410.0,61404.0,0.00444243]
[1723347164583,1.139915,61408.0,61404.0,0.00444243]
[1723347164909,1.139915,61408.0,61399.0,0.0609]
[1723347165115,1.139915,61408.0,61406.0,0.00444243]
[1723347165243,1.239915,61408.0,61407.0,0.00535653]
[1723347166786,1.245915,61408.0,61407.0,0.00635653]
[1723347166986,1.253915,61408.0,61407.0,0.00635653]
[1723347167640,1.41772992,61408.0,61407.0,0.0019141]
[1723347167835,1.41772992,61408.0,61407.0,0.00635653]
[1723347171836,1.41772992,61408.0,61407.0,0.0019141]
[1723347171837,1.56152992,61408.0,61407.0,0.0019141]
[1723347172272,1.56152992,61408.0,61407.0,0.00635653]
[1723347172479,1.56152992,61408.0,61407.0,0.0019141]
[1723347172897,1.88721992,61408.0,61407.0,0.0019141]
[1723347173170,2.64021992,61408.0,61407.0,0.0019141]
[1723347173393,2.80436962,61408.0,61407.0,0.0019141]
[1723347173831,2.82992719,61408.0,61407.0,0.0019141]
[1723347174040,3.15561719,61408.0,61407.0,0.0019141]
[1723347174202,3.14005962,61408.0,61407.0,0.0019141]
[1723347174418,0.325775,61392.0,61391.0,0.00545653]
[1723347174638,0.488662,61392.0,61391.0,0.00545653]
[1723347174847,1.140212,61392.0,61391.0,0.00545653]
[1723347175256,1.30402692,61392.0,61391.0,0.00545653]
[1723347176463,1.30702692,61392.0,61391.0,0.00545653]
[1723347176878,1.31202692,61392.0,61391.0,0.00545653]
[1723347178304,1.47617662,61392.0,61391.0,0.00545653]
[1723347178505,1.57617662,61392.0,61391.0,0.00545653]
[1723347179351,1.57617662,61392.0,61391.0,0.0010141]
[1723347179623,2.61765162,61392.0,61391.0,0.0010141]
[1723347180154,2.61265162,61392.0,61391.0,0.0010141]
[1723347180439,2.60965162,61392.0,61391.0,0.0010141]
[1723347180644,2.66865162,61392.0,61391.0,0.0020141]
[1723347180990,2.65565162,61392.0,61391.0,0.0020141]
[1723347181360,2.98142662,61392.0,61391.0,0.0020141]
[1723347181765,2.98142662,61392.0,61391.0,0.0010141]
[1723347181766,2.64265162,61392.0,61391.0,0.0010141]
[1723347182167,2.65665162,61392.0,61391.0,0.0020141]
[1723347182409,2.65665162,61392.0,61391.0,0.0010141]
[1723347182857,2.65665162,61392.0,61391.0,0.0020141]
[1723347183066,2.64265162,61392.0,61391.0,0.0010141]
[1723347183321,2.65665162,61392.0,61391.0,0.0010141]
[1723347184027,2.67065162,61392.0,61391.0,0.0010141]
[1723347184869,2.86985162,61392.0,61391.0,0.0010141]
[1723347185384,2.88385162,61392.0,61391.0,0.0020141]
[1723347185541,2.84185162,61392.0,61391.0,0.0010141]
[1723347185742,2.86985162,61392.0,61391.0,0.0020141]
[1723347185943,2.85585162,61392.0,61391.0,0.0010141]
[1723347186484,2.86985162,61392.0,61391.0,0.0020141]
[1723347186751,2.95150919,61392.0,61391.0,0.0020141]
[1723347187514,0.564434,61383.0,61382.0,0.0009152]
[1723347187717,1.67744892,61383.0,61382.0,0.0009152]
[1723347187897,1.67744892,61383.0,61382.0,0.00535763]
[1723347187898,2.32909492,61383.0,61382.0,0.00535763]
[1723347188471,2.32909492,61383.0,61382.0,0.0009152]
[1723347189017,2.33809492,61383.0,61382.0,0.00635763]
[1723347189201,2.45469583,61383.0,61382.0,0.00635763]
[1723347189402,2.79151883,61383.0,61382.0,0.0019152]
[1723347191252,0.02,61383.0,61382.0,0.14365763]
[1723347191419,0.02,61383.0,61382.0,0.30657163]
[1723347191820,0.02,61383.0,61382.0,0.63239963]
[1723347192020,0.02,61383.0,61382.0,0.14365763]
[1723347192220,0.3258,61388.0,61384.0,0.00444243]
[1723347192446,0.162905,61386.0,61385.0,0.08004243]
[1723347192598,0.162905,61386.0,61385.0,0.14174243]
[1723347193401,0.162905,61386.0,61382.0,0.0009152]
[1723347193402,0.57739993,61391.0,61390.0,0.14174243]
[1723347194146,0.90317993,61391.0,61390.0,0.14174243]
[1723347194344,1.22895993,61391.0,61390.0,0.00444243]
[1723347194551,0.814502,61387.0,61386.0,0.14174243]
[1723347195970,0.819502,61387.0,61386.0,0.14174243]
[1723347196374,0.819502,61387.0,61386.0,0.00444243]
[1723347196375,1.30911792,61387.0,61386.0,0.00444243]
[1723347197114,1.31611792,61387.0,61386.0,0.00444243]
[1723347197689,1.31111792,61387.0,61386.0,0.00444243]
[1723347198116,1.31111792,61387.0,61382.0,0.0009152]
[1723347198117,1.14038,61383.0,61382.0,0.0009152]
[1723347198317,1.24038,61383.0,61382.0,0.0009152]
[1723347198486,1.24038,61383.0,61382.0,0.00535763]
[1723347198889,1.40419492,61383.0,61382.0,0.0009152]
[1723347199074,1.56834462,61383.0,61382.0,0.0009152]
[1723347199569,1.40419492,61383.0,61382.0,0.00535763]
[1723347200152,1.40619492,61383.0,61382.0,0.00535763]
[1723347200852,1.24238,61383.0,61382.0,0.00535763]
[1723347201435,1.14438,61383.0,61382.0,0.00535763]
[1723347201671,0.818557,61383.0,61382.0,0.00535763]
[1723347201874,0.490734,61383.0,61382.0,0.08755763]
[1723347202301,0.494734,61383.0,61382.0,0.08755763]
[1723347202463,0.494734,61383.0,61382.0,0.14945763]
[1723347202464,0.168911,61383.0,61382.0,0.14945763]
[1723347202668,0.166911,61383.0,61382.0,0.14945763]
[1723347203048,0.164911,61383.0,61382.0,0.14945763]
[1723347203317,0.168911,61383.0,61382.0,0.14945763]
[1723347203718,0.164911,61383.0,61382.0,0.14945763]
[1723347204060,0.490734,61383.0,61382.0,0.14945763]
[1723347204262,0.488734,61383.0,61382.0,0.00535763]
[1723347204467,0.814557,61383.0,61382.0,0.00535763]
[1723347204667,0.816557,61383.0,61382.0,0.00535763]
[1723347204869,0.814557,61383.0,61382.0,0.00535763]
[1723347205071,0.818557,61383.0,61382.0,0.00535763]
[1723347205290,1.14438,61383.0,61382.0,0.00835763]
[1723347205511,1.14038,61383.0,61382.0,0.00535763]
[1723347205724,1.44415292,61383.0,61382.0,0.00535763]
[1723347205930,1.31019492,61383.0,61382.0,0.00535763]
[1723347206189,1.30819492,61383.0,61382.0,0.00535763]
[1723347206340,1.30419492,61383.0,61382.0,0.00535763]
[1723347206542,0.97837192,61383.0,61382.0,0.00535763]
[1723347206750,0.98237192,61383.0,61382.0,0.00535763]
[1723347207544,0.98437192,61383.0,61382.0,0.00535763]
[1723347209612,1.13530921,61383.0,61382.0,0.00535763]
[1723347209810,0.98437192,61383.0,61382.0,0.00535763]
[1723347210070,0.98437192,61383.0,61382.0,0.0009152]
[1723347210243,0.98437192,61383.0,61382.0,0.00535763]
[1723347210386,0.98437192,61383.0,61382.0,0.0009152]
[1723347210586,0.98437192,61383.0,61382.0,0.00535763]
[1723347211656,1.64437192,61383.0,61382.0,0.0009152]
[1723347211845,1.64437192,61383.0,61382.0,0.00535763]
[1723347214620,1.154734,61383.0,61382.0,0.08755763]
[1723347214823,0.168911,61383.0,61382.0,0.14945763]
[1723347215650,0.494734,61383.0,61382.0,0.14945763]
[1723347215848,0.494734,61383.0,61382.0,0.31237163]
[1723347215849,0.006,61383.0,61382.0,0.31237163]
[1723347216335,0.006,61383.0,61382.0,0.14945763]
[1723347217816,0.006,61383.0,61382.0,0.1450152]
[1723347218020,0.168911,61383.0,61382.0,0.00535763]
[1723347218581,0.494734,61383.0,61382.0,0.00535763]
[1723347218861,0.168911,61383.0,61382.0,0.00535763]
[1723347219617,0.494734,61383.0,61382.0,0.00535763]
[1723347220466,0.488734,61383.0,61382.0,0.00535763]
[1723347220846,0.819557,61383.0,61382.0,0.00935763]
[1723347221046,0.493734,61383.0,61382.0,0.00535763]
[1723347221370,0.488734,61383.0,61382.0,0.01235763]
[1723347221549,0.489734,61383.0,61382.0,0.01235763]
[1723347221753,0.488734,61383.0,61382.0,0.00635763]
[1723347221951,0.488734,61383.0,61382.0,0.01035763]
[1723347222150,0.488734,61383.0,61382.0,0.00935763]
[1723347222353,0.488734,61383.0,61382.0,0.00535763]
[1723347222553,0.488734,61383.0,61382.0,0.00635763]
[1723347223692,0.488734,61383.0,61382.0,0.01035763]
[1723347223894,0.488705,61387.0,61386.0,0.08554243]
[1723347224781,0.488705,61387.0,61386.0,0.00444243]
[1723347224782,0.81451,61387.0,61386.0,0.00444243]
[1723347224981,1.06162492,61387.0,61386.0,0.00444243]
[1723347225316,1.12332492,61387.0,61386.0,0.00444243]
[1723347225515,1.12532492,61387.0,61386.0,0.00444243]
[1723347226032,1.17414337,61387.0,61386.0,0.00444243]
[1723347226420,1.12532492,61387.0,61386.0,0.00444243]
[1723347227030,0.98032492,61387.0,61386.0,0.00444243]
[1723347227224,0.81651,61387.0,61386.0,0.00444243]
[1723347227467,0.490705,61387.0,61386.0,0.00444243]
[1723347227679,0.495705,61387.0,61386.0,0.00444243]
[1723347227891,0.493701,61387.0,61386.0,0.00444243]
[1723347228083,0.488701,61387.0,61386.0,0.00444243]
[1723347228283,0.490701,61387.0,61386.0,0.00444243]
[1723347228459,0.493701,61387.0,61386.0,0.00444243]
[1723347228664,0.495701,61387.0,61386.0,0.00444243]
[1723347228861,0.327801,61387.0,61385.0,0.0811]
[1723347229082,0.48871,61386.0,61385.0,0.0811]
[1723347229295,0.48871,61386.0,61385.0,0.08554243]
[1723347229509,0.48871,61386.0,61385.0,0.00444243]
[1723347230300,0.162909,61384.0,61382.0,0.0820152]
[1723347230531,0.162909,61384.0,61383.0,0.00444243]
[1723347231018,0.488726,61384.0,61383.0,0.00444243]
[1723347231979,0.488726,61384.0,61383.0,0.00644243]
[1723347232382,0.488726,61384.0,61383.0,0.01144243]
[1723347232667,0.488726,61384.0,61383.0,0.007]
[1723347232813,0.488726,61384.0,61383.0,0.01144243]
[1723347232814,0.97835792,61384.0,61383.0,0.01144243]
[1723347233230,1.30417492,61384.0,61383.0,0.00644243]
[1723347233579,1.30417492,61384.0,61383.0,0.00744243]
[1723347233731,1.30417492,61384.0,61383.0,0.00544243]
[1723347234142,1.30517492,61384.0,61383.0,0.00544243]
[1723347234659,0.97935792,61384.0,61383.0,0.00544243]
[1723347234884,0.97835792,61384.0,61383.0,0.00444243]
[1723347235162,0.98235792,61384.0,61383.0,0.00444243]
[1723347235338,0.98435792,61384.0,61383.0,0.00444243]
[1723347235742,0.98635792,61384.0,61383.0,0.00444243]
[1723347236131,0.98435792,61384.0,61383.0,0.00444243]
[1723347236333,0.98835792,61384.0,61383.0,0.00444243]
[1723347236546,0.98435792,61384.0,61383.0,0.00444243]
[1723347236749,1.31017492,61384.0,61383.0,0.00444243]
[1723347236917,0.98035792,61384.0,61383.0,0.00444243]
[1723347237322,1.05864295,61384.0,61383.0,0.00444243]
[1723347237521,1.38445995,61384.0,61383.0,0.00444243]
[1723347237716,0.98035792,61384.0,61383.0,0.00444243]
[1723347238153,0.98535792,61384.0,61383.0,0.00444243]
[1723347238687,0.814557,61383.0,61382.0,0.0009152]
[1723347238820,1.12997937,61383.0,61382.0,0.00535763]
[1723347239016,1.02724355,61383.0,61382.0,0.00535763]
[1723347239281,0.97837192,61383.0,61382.0,0.00535763]
[1723347240032,0.53760669,61383.0,61382.0,0.14935763]
[1723347240254,0.54060669,61383.0,61382.0,0.14935763]
[1723347240455,0.003,61383.0,61382.0,0.14935763]
[1723347240705,0.166911,61383.0,61382.0,0.14935763]
[1723347240993,0.163911,61383.0,61382.0,0.14935763]
[1723347241193,0.489734,61383.0,61382.0,0.14935763]
[1723347241408,0.492734,61383.0,61382.0,0.14935763]
[1723347241758,0.491734,61383.0,61382.0,0.14935763]
[1723347242156,0.492734,61383.0,61382.0,0.14935763]
[1723347242338,0.491734,61383.0,61382.0,0.14935763]
[1723347242538,0.165911,61383.0,61382.0,0.14935763]
[1723347242797,0.165911,61383.0,61382.0,0.15235763]
[1723347243100,0.162911,61383.0,61382.0,0.14935763]
[1723347243313,0.21178069,61385.0,61384.0,0.00444243]
[1723347243538,0.53759269,61385.0,61384.0,0.00444243]
[1723347245728,0.53759269,61385.0,61384.0,0.00744243]
[1723347245992,0.21178069,61385.0,61384.0,0.00444243]
[1723347246434,0.53759269,61385.0,61384.0,0.00444243]
[1723347247005,0.21178069,61385.0,61384.0,0.00444243]
[1723347247199,0.21378069,61385.0,61384.0,0.00444243]
[1723347247571,0.53959269,61385.0,61384.0,0.00444243]
[1723347247772,0.21378069,61385.0,61384.0,0.00444243]
[1723347248178,0.86340469,61385.0,61384.0,0.00444243]
[1723347248338,0.814532,61385.0,61384.0,0.00444243]
[1723347249341,0.48872,61385.0,61384.0,0.00444243]
[1723347249576,0.53959745,61385.0,61384.0,0.00444243]